Cogmind - Beta 16.1 @@@ ROGUE MODE // 2026.02.08 @ 20:50:16 Player: Minty Result: Escaped! Performance ------------- Evolutions (9) 4500 Regions Visited (27) 5400 Robots Destroyed (319) 1595 Value Destroyed (13744) 13744 Prototype IDs (43) 860 Alien Tech Used (0) 0 Bonus (9933) 9933 TOTAL SCORE: 36032 Bonus ------- High Alert Combat Kills 701 Follower Combat Kills 2327 Entered Garrisons 200 Network Hubs Disabled 400 Met Data Miner 300 Built Enhanced Grunts 300 A7 Reached Mainframe 300 Met R17 at Cetus 500 Met R17 at Research 2000 Win 3000 Friendly Fire -95 Cogmind --------- Core Integrity 1577/1600 Matter 5/300 Energy 834/840 System Corruption 3% Temperature Cool (15) Movement Flying (28) Location To Epsilon Eridani Parts ------- > --- POWER (3) -------- Micro Antimatter Reactor (fused) Light Quantum Reactor > --- PROPULSION (6) --- Impulse Thruster Impulse Thruster Field Propulsion Array Q-thruster Q-thruster > --- UTILITY (12) ----- Experimental Cooling System Experimental Energy Well Advanced Sensor Array Advanced Signal Interpreter Long-range Terrain Scanner Terrain Scan Processor Advanced Terrain Scan Processor ECM Suite Thermal Shield Hacking Suite Advanced System Shield > --- WEAPON (4) ------- Hypervelocity Railgun > --- INVENTORY (5) ---- Quantum Reactor Hacking Suite Enhanced Nova Cannon Fusion Bomb Launcher Fusion Bomb Launcher Peak State ------------ > --- POWER ------------ Particle Reactor Light Particle Reactor Light Quantum Reactor > --- PROPULSION ------- Medium Treads Biometal Heavy Treads Advanced Myomer Leg Centrium Wheel High-density Centrium Wheel > --- UTILITY ---------- Advanced Heat Sink Advanced Heat Sink Advanced Cooling System Experimental Cooling System Experimental Energy Well Layered Medium Armor Plating Layered Medium Armor Plating Centrium Heavy Armor Plating AEGIS Remote Shield > --- WEAPON ----------- Dispersion Rifle Dispersion Rifle Dispersion Rifle Dispersion Rifle > --- INVENTORY -------- Improved Matter Compressor Layered Medium Armor Plating Nova Cannon Nova Cannon Heavy Shock Bomb Launcher [Rating: 173] Favorites ----------- Power Quantum Reactor Engine Improved Deuterium Engine Power Core Neutrino Core Reactor Quantum Reactor Propulsion Improved Carbon-fiber Leg Treads Biometal Heavy Treads Leg Improved Carbon-fiber Leg Wheel Wheel Hover Unit Cooled Aerolev Unit Flight Unit Impulse Thruster Utility Advanced Heat Sink Device Advanced Heat Sink Storage Medium Storage Unit Processor Advanced Targeting Computer Hackware Improved System Shield Protection Improved Medium Armor Plating Weapon Precision Assault Rifle Energy Gun Dispersion Rifle Energy Cannon Enhanced Nova Cannon Ballistic Gun Precision Assault Rifle Ballistic Cannon Light Cannon Launcher Heavy Rocket Launcher Special Weapon Advanced Remote Datajack Impact Weapon Heavy Mace Slashing Weapon Phasing Sabre Build | -11 -10 -10 -9 -9 -8 -7 -7 -7 -7 -7 -7 -6 -6 -6 -6 -6 -6 -5 -5 -5 -4 -4 -4 -3 -3 -2 -1 ------- Run | Yrd Mat Min Mat Min Mat Fac Gar Fac Low Low Dat Pro Fac Ext Cet Arc Hub Fac Upp Upp Fac Was Fac Res Tes Res Acc Slots Evolved 18 | . . . 2 . 2 2 . . . . . . 2 . . . . 2 . . 2 . . 2 . 2 2 Power 2 | . . . . . . . . . . . . . 1 . . . . . . . . . . . . 1 . Propulsion 4 | . . . . . . 2 . . . . . . . . . . . 1 . . 1 . . . . . . Utility 10 | . . . 1 . 2 . . . . . . . 1 . . . . 1 . . 1 . . 1 . 1 2 Weapon 2 | . . . 1 . . . . . . . . . . . . . . . . . . . . 1 . . . Parts Attached 352 | . 8 5 18 7 25 10 5 20 4 1 3 1 12 24 13 3 3 36 21 . 1 19 14 17 11 62 9 Power 36 | . . . 1 1 2 1 . 2 . . . . 1 2 2 . . 3 4 . . 3 1 2 . 10 1 Engine 9 | . . . 1 1 2 1 . 2 . . . . . 1 . . . 1 . . . . . . . . . Core 8 | . . . . . . . . . . . . . 1 1 . . . 2 4 . . . . . . . . Reactor 19 | . . . . . . . . . . . . . . . 2 . . . . . . 3 1 2 . 10 1 Propulsion 95 | . 2 1 6 2 4 5 4 8 1 . 3 . 3 6 2 . 1 10 7 . . 6 . . 3 18 3 Treads 20 | . 2 1 . . 4 . . . . . . . . . 2 . . . 6 . . 4 . . 1 . . Leg 37 | . . . 2 . . 5 4 8 1 . 3 . 3 6 . . . . . . . 2 . . 1 2 . Wheel 17 | . . . 4 2 . . . . . . . . . . . . . 2 . . . . . . 1 8 . Hover 3 | . . . . . . . . . . . . . . . . . . 3 . . . . . . . . . Flight 18 | . . . . . . . . . . . . . . . . . 1 5 1 . . . . . . 8 3 Utility 134 | . 2 1 3 3 9 1 . 9 1 1 . . 6 11 4 3 2 15 5 . 1 5 10 9 5 24 4 Device 56 | . . . 1 2 2 . . . . 1 . . 3 5 2 3 . 1 . . 1 1 8 4 4 17 1 Storage 9 | . . . 1 . 1 . . 1 . . . . . . . . . 1 4 . . . . . . 1 . Processor 24 | . 2 . 1 1 4 . . 1 1 . . . 2 1 . . . 3 . . . . 1 1 . 5 1 Hackware 13 | . . . . . . . . 2 . . . . . 2 . . 2 4 1 . . . . . . . 2 Protection 32 | . . 1 . . 2 1 . 5 . . . . 1 3 2 . . 6 . . . 4 1 4 1 1 . Artifact . | . . . . . . . . . . . . . . . . . . . . . . . . . . . . Weapon 87 | . 4 3 8 1 10 3 1 1 2 . . 1 2 5 5 . . 8 5 . . 5 3 6 3 10 1 Energy Gun 24 | . . . 3 1 2 . . 1 . . . . 1 . 4 . . 1 1 . . . 1 4 1 4 . Energy Cannon 9 | . 1 . . . . . . . . . . . . 1 . . . 1 1 . . . . 2 . 3 . Ballistic Gun 34 | . . 2 2 . 7 3 1 . . . . . 1 3 1 . . 5 1 . . 3 2 . 1 1 1 Ballistic Cannon 5 | . 2 1 1 . . . . . . . . . . . . . . . . . . . . . . 1 . Launcher 7 | . 1 . . . 1 . . . 2 . . 1 . 1 . . . . . . . . . . . 1 . Special Weapon 1 | . . . . . . . . . . . . . . . . . . . . . . 1 . . . . . Impact Weapon 3 | . . . 1 . . . . . . . . . . . . . . 1 1 . . . . . . . . Slashing Weapon 4 | . . . 1 . . . . . . . . . . . . . . . 1 . . 1 . . 1 . . Piercing Weapon . | . . . . . . . . . . . . . . . . . . . . . . . . . . . . Special Melee Weapon . | . . . . . . . . . . . . . . . . . . . . . . . . . . . . Unidentified Prototypes 30 | . . . 1 . 3 1 . 2 . . . . . . 4 . . 3 . . . 3 . . 8 5 . Corrupted Parts 12 | . . . . . . . . . . . . . . 2 3 . 1 2 2 . . . . . . 2 . System Corruption 60 | . . . . . . . . . . . . . . 8 22 . 10 7 3 . . . . . . 10 . Parts Lost 103 | . . 4 3 4 1 2 3 . 1 . . 4 4 6 1 . 3 18 4 . 9 . 3 . 2 30 1 Power 13 | . . 1 . . . 1 . . . . . . . 1 . . . 3 1 . 1 . . . . 5 . Propulsion 39 | . . 1 2 2 . 1 2 . . . . . . 2 . . 1 8 1 . 5 . . . 2 12 . Utility 27 | . . 1 . 1 . . . . 1 . . 2 1 . 1 . 1 3 2 . 3 . 3 . . 7 1 Weapon 24 | . . 1 1 1 1 . 1 . . . . 2 3 3 . . 1 4 . . . . . . . 6 . Highest Loss Streak 15 | . . 4 3 4 1 2 1 . 1 . . 4 3 3 1 . 3 7 3 . 9 . 2 . 2 15 1 To Critical Strikes 1 | . . . . . . . . . . . . . . . . . . . . . . . . . 1 . . Average Backups 6 | 7 7 7 8 8 7 7 7 9 9 10 8 6 5 7 9 9 9 4 4 5 5 4 4 3 4 4 4 Power 1 | 1 1 1 . 2 1 . . 1 1 1 1 1 . . 1 1 1 . . 1 1 1 2 1 . . 1 Propulsion 1 | 4 2 2 1 . 2 1 . 2 4 4 2 1 1 . . . . . . . . . . . . . . Utility 1 | 1 1 1 1 2 . 2 3 1 1 1 1 1 1 4 2 6 7 2 2 3 3 1 1 1 1 1 . Weapon 2 | 1 3 3 4 3 3 3 3 3 3 4 4 3 1 1 3 2 1 1 1 1 1 1 1 1 2 3 2 Tool/Special . | . . . . . . . . . . . . . . . . . . . . . . . . . . . . Unused Backups 33 | . 8 2 . . 6 . 1 5 . . . . . . . 1 . 1 1 . . . . . . 3 5 Power 7 | . 2 1 . . . . 1 2 . . . . . . . . . . . . . . . . . . 1 Propulsion 5 | . 2 . . . 2 . . . . . . . . . . . . . . . . . . . . 1 . Utility 8 | . 1 1 . . . . . 1 . . . . . . . 1 . 1 . . . . . . . 2 1 Weapon 12 | . 3 . . . 3 . . 2 . . . . . . . . . . 1 . . . . . . . 3 Tool/Special 1 | . . . . . 1 . . . . . . . . . . . . . . . . . . . . . . Average Slot Usage (%) 86 | . 93 99 88 91 96 99 97 99 99 100 76 96 83 94 88 85 79 63 64 100 84 66 67 83 81 80 72 Engine 4 | . 14 14 11 11 9 7 7 7 7 7 7 7 7 8 . . . 3 . . . 1 . . . . . Core 1 | . . . . . . . . . . . . . 3 4 4 . . . 5 11 8 4 1 . . . . Reactor 3 | . . . . . . . . . . . . . . . 6 13 12 . . . . 3 8 9 9 10 7 Treads 6 | . 25 27 . . 16 . 2 . . . . . . . 2 13 12 . 8 23 18 8 15 14 9 2 . Leg 10 | . 2 . 1 . . 28 26 30 30 30 29 30 25 26 21 . . . . . . 4 . . . . . Wheel 2 | . . . 19 16 1 . . . . . . . . . . . . . . . . . . . 2 9 . Flight 1 | . . . . . . . . . . . . . . . . . . 7 3 5 4 . . . . 6 17 Device 10 | . . . 7 9 11 7 7 . . . . . 5 13 19 25 20 3 3 5 7 . 6 25 20 22 25 Storage 5 | . 14 14 11 11 9 7 7 7 7 7 7 7 6 6 6 6 5 . 5 11 9 1 . . . 3 4 Processor 8 | . 7 11 7 10 16 15 15 15 20 23 23 21 13 5 . . . 7 6 5 5 5 1 5 . 2 10 Hackware 1 | . . . . . . . . . . . . . . 1 . . 3 18 15 17 15 10 . . . . 5 Protection 7 | . . 2 . . 5 7 7 14 9 6 7 5 2 9 12 6 5 6 . . . 12 17 9 19 6 . Energy Gun 4 | . . . . 27 3 . . . . . . . 1 1 7 14 18 . 2 5 4 . . 12 18 8 . Ballistic Gun 10 | . 1 6 11 . 23 23 22 23 21 22 1 16 6 14 4 4 . 5 2 5 4 12 14 3 . . 2 Ballistic Cannon 1 | . 25 21 3 . . . . . . . . . . . . . . . . . . . . . . . . Peak Build Rating 173 | 7 10 12 17 20 47 56 56 54 55 55 50 53 65 65 115 115 115 86 76 76 81 116 126 148 157 173 140 Average Rating 76 | 7 8 10 13 15 40 51 52 50 53 54 39 50 51 58 75 114 110 58 49 76 75 90 117 141 139 140 127 On Entrance 58 | 7 7 10 7 15 20 47 53 51 54 55 55 40 42 50 60 115 115 2 27 76 76 19 116 121 148 143 98 Avg Prop Armor Cover (%) 7 | . . . 12 . 6 6 6 . . . . . . . . . . 6 1 1 1 18 . . 7 6 . Naked Turns 2 | . . . . . . . . . . . . . . . . . 2 . . . . . . . . . . Heaviest Build 149 | 12 16 19 25 28 40 40 40 41 44 42 27 42 55 61 87 89 87 34 44 44 45 105 106 94 107 149 42 Greatest Support 210 | 20 40 40 20 20 56 48 49 72 72 72 72 72 72 77 160 160 160 34 112 112 112 210 210 210 210 76 52 Greatest Overweight (x) 12 | . . . 2 8 1 1 1 . . . . . 1 1 1 . . 3 1 . . 12 . . 5 6 . Average Overweight (x) . | . . . . 1 . . . . . . . . . . . . . . . . . . . . 3 . . Largest Inventory Capacity 10 | 8 8 8 10 10 10 8 8 10 10 10 10 10 10 10 10 10 10 5 5 5 5 5 5 5 5 5 5 Average Capacity 7 | 8 8 8 9 10 8 8 8 9 10 10 10 10 10 10 10 10 9 5 5 5 5 5 5 5 5 5 5 Most Carried 10 | 7 8 8 10 10 8 8 8 10 10 10 10 9 8 10 10 10 10 5 5 5 5 5 5 5 5 5 5 Average Carried 7 | 7 7 7 8 8 7 7 7 9 9 10 8 6 5 9 9 9 8 4 4 5 5 4 5 4 4 4 4 Final Capacity 10 | 8 8 8 10 10 8 8 8 10 10 10 10 10 10 10 10 10 5 5 5 5 5 5 5 5 5 5 5 Final Carried 10 | 7 8 7 9 8 8 8 8 10 10 10 10 5 8 10 10 10 5 3 5 5 5 5 5 5 5 5 5 Class Distribution -------------------- 31% | Scavenger-Tank 26% | Gunner 11% | Mutant 5% | Scavenger-Gunner 5% | Scavenger-Mutant 4% | Hacker-Mutant 3% | Scout Dominant Class ---------------- Mutant | -10/Materials Mutant | -10/Mines Mutant | -9/Materials Skirmisher | -9/Mines Gunner | -8/Materials Scavenger-Gunner | -7/Factory Gunner | -7/Garrison Gunner | -7/Factory Gunner | -7/Lower Caves Gunner | -7/Lower Caves Mutant | -7/Data Miner Gunner | -6/Proximity Caves Gunner | -6/Factory Scavenger-Tank | -6/Extension Scavenger-Tank | -6/Cetus Scavenger-Tank | -6/Archives Scavenger-Tank | -6/Hub_04(d) Hacker-Mutant | -5/Factory Scavenger-Mutant | -5/Upper Caves Scavenger-Mutant | -5/Upper Caves Scavenger-Mutant | -4/Factory Hacker-Tank | -4/Waste Scavenger-Tank | -4/Factory Scavenger-Tank | -3/Research Scavenger-Tank | -3/Testing Scavenger-Tank | -2/Research Hacker-Scout | -1/Access Resources | -11 -10 -10 -9 -9 -8 -7 -7 -7 -7 -7 -7 -6 -6 -6 -6 -6 -6 -5 -5 -5 -4 -4 -4 -3 -3 -2 -1 ----------- Run | Yrd Mat Min Mat Min Mat Fac Gar Fac Low Low Dat Pro Fac Ext Cet Arc Hub Fac Upp Upp Fac Was Fac Res Tes Res Acc Matter Collected 10850 | 200 332 110 311 247 1038 689 378 815 481 187 . 370 154 1122 563 401 111 590 461 . . 190 530 253 200 1095 22 Remotely 75 | . . . . . . . . . . . . . . . . . . . . . . . . 75 . . . Salvage Created 15605 | . 198 59 567 362 1732 923 400 877 678 325 . 699 332 902 . 453 237 1209 1015 . . . 601 367 774 2818 77 Parts 757 | . 16 8 41 23 101 41 17 47 24 16 . 30 12 40 . 33 9 58 36 . . . 31 13 21 140 . Haulers Intercepted 11 | . . . 1 . 4 1 . 3 . . . . . . . . . 1 . . . . . . . 1 . Recyclers Shooed 7 | . . . . . 1 1 . . . . . . . 1 . . . 1 . . . . . . 1 1 1 Parts Field Recycled . | . . . . . . . . . . . . . . . . . . . . . . . . . . . . Retrieved Matter . | . . . . . . . . . . . . . . . . . . . . . . . . . . . . Parts Self-Destructed 30 | . . . . . . . . . 6 7 . 15 . . . . . . 2 . . . . . . . . Prevented 20 | . . . . . . . . . 9 4 . 7 . . . . . . . . . . . . . . . Parts Restored . | . . . . . . . . . . . . . . . . . . . . . . . . . . . . Kills | -11 -10 -10 -9 -9 -8 -7 -7 -7 -7 -7 -7 -6 -6 -6 -6 -6 -6 -5 -5 -5 -4 -4 -4 -3 -3 -2 -1 ------- Run | Yrd Mat Min Mat Min Mat Fac Gar Fac Low Low Dat Pro Fac Ext Cet Arc Hub Fac Upp Upp Fac Was Fac Res Tes Res Acc Combat Hostiles Destroyed 232 | . 8 4 12 7 30 12 11 8 7 7 . 22 6 14 . 1 3 16 5 . . . 8 5 11 34 1 Melee 8 | . . . 5 . . . . . . . . . . 1 . . . . 2 . . . . . . . . Guns 133 | . . . . 5 29 12 8 8 3 3 . 2 3 7 . 1 1 14 . . . . 8 5 9 15 . Cannons 21 | . 7 1 3 . . . . . . . . . . 3 . . . . . . . . . . . 7 . AOE 55 | . 1 3 4 2 1 . 3 . 4 4 . 20 2 1 . . 2 2 . . . . . . . 5 1 Classes Destroyed 22 | . 2 2 5 2 2 2 . 1 1 1 . . . 1 . . . 1 1 . . . . . 1 . . Worker 19 | . 1 . 1 1 4 1 . 3 . . . . . . . . 2 2 . . . . 1 . 1 1 1 Builder 15 | . . . 2 1 1 1 . 1 . . . . . 1 . . . 4 . . . . . . . 4 . Tunneler 6 | . . . . 2 1 . . 1 . . . . . . . . . . . . . . . . . 2 . Hauler 11 | . . . 1 . 4 1 . 3 . . . . . . . . . 1 . . . . . . . 1 . Recycler 13 | . . . 2 . 2 2 . 2 . . . . . . . . . 2 . . . . . . 1 2 . Minesweeper 1 | . . . . . . . . . . 1 . . . . . . . . . . . . . . . . . Mechanic 3 | . . . . . . . . . . . . . . . . . . 1 . . . . . . 2 . . Operator 12 | . . . . . . 1 . . . . . . . 1 . 9 . . . . . . 1 . . . . Watcher 5 | . . . 1 . . . . . . . . . . . . . . 1 . . . . 1 . . 2 . Swarmer 48 | . . 3 3 . 7 . 4 . . 3 . 9 . . . . . 5 4 . . . . . 4 6 . Grunt 99 | . 8 . 7 4 15 9 4 1 6 4 . 10 5 6 . . 1 5 . . . . 4 3 4 2 1 Brawler 3 | . . . . 1 . . . . . . . . . . . . . 2 . . . . . . . . . Duelist 5 | . . . 1 2 2 . . . . . . . . . . . . . . . . . . . . . . Sentry 22 | . . 1 1 . 3 1 . 4 1 . . 1 . 4 . 1 1 1 . . . . 1 1 1 . . Specialist 3 | . . . . . 2 . . . . . . . . . . . . . . . . . 1 . . . . Hunter 21 | . . . . . . 2 3 . . . . 1 . 2 . . 1 1 . . . . 1 1 1 8 . Programmer 24 | . . . . . . . . 3 . . . 1 1 . . . . 2 . . . . . . . 17 . Heavy 2 | . . . . . 1 . . . . . . . . . . . . . . . . . 1 . . . . Behemoth 2 | . . . . . . . . . . . . . . 1 . . . . . . . . . . . 1 . Alpha 7 1 | . . . . . . . . . . . . . . . . . . . . . . . . . 1 . . Decomposer 2 | . . . . . . . . . . . . 1 . . . . . . 1 . . . . . . . . Packrat 1 | . . . . . . . . . 1 . . . . . . . . . . . . . . . . . . Samaritan 7 | . . . . . . . . . 4 . . . . . . . . . 3 . . . . . . . . Thug 1 | . . . . . . . . . . . . . . . . 1 . . . . . . . . . . . Butcher 1 | . . . . . . . . . . . . . . 1 . . . . . . . . . . . . . Guerrilla 1 | . . . . . . . . . . . . . . . . . 1 . . . . . . . . . . Mutant 1 | . . . . . . . . . . . . . . . . . . . 1 . . . . . . . . Best Kill Streak 16 | . 3 3 7 3 5 6 5 4 2 4 . 16 2 2 . 5 4 10 4 . . . 5 3 6 5 1 Combat Bots Only 16 | . 2 3 3 3 4 4 5 2 2 4 . 16 2 2 . 1 2 6 4 . . . 5 3 5 5 1 Max Kills in Single Turn 8 | . 1 2 2 2 2 2 2 1 2 2 . 8 2 1 . 2 3 4 1 . . . 1 2 2 3 1 Gunslinging 1 | . . . . 1 1 1 . . . . . . . . . . . . . . . . . 1 1 1 . Exploded 7 | . 1 2 2 1 1 . 1 . 2 2 . 7 2 1 . . 1 2 . . . . . . . 2 1 Melee 1 | . . . 1 . . . . . . . . . . 1 . . . . 1 . . . . . . . . Uniques/NPCs Destroyed . | . . . . . . . . . . . . . . . . . . . . . . . . . . . . Combat | -11 -10 -10 -9 -9 -8 -7 -7 -7 -7 -7 -7 -6 -6 -6 -6 -6 -6 -5 -5 -5 -4 -4 -4 -3 -3 -2 -1 -------- Run | Yrd Mat Min Mat Min Mat Fac Gar Fac Low Low Dat Pro Fac Ext Cet Arc Hub Fac Upp Upp Fac Was Fac Res Tes Res Acc Hostile Shots Fired 2204 | . 44 10 59 23 104 82 63 98 71 17 . 59 38 237 17 17 57 219 36 . 54 . 152 17 112 591 27 Missed 732 | . 13 2 16 8 23 24 20 43 40 5 . 19 16 91 9 5 11 77 14 . 12 . 38 6 35 187 18 Hits 1472 | . 31 8 43 15 81 58 43 55 31 12 . 40 22 146 8 12 46 142 22 . 42 . 114 11 77 404 9 Melee 16 | . . . 8 4 2 . . . . . . . . . . . . . . . . . . . . 2 . Projectile 1456 | . 31 8 35 11 79 58 43 55 31 12 . 40 22 146 8 12 46 142 22 . 42 . 114 11 77 402 9 AOE 12 | . . 10 . . . . . . . . . . . . . . . . . . . . . . . 2 . Critical Strikes 64 | . . . 3 1 2 1 1 1 1 . . 1 5 1 . 1 1 6 . . 2 . 7 1 4 24 1 Actively Blocked 2 | . . . . . . . . . . . . . . . . . . 1 . . . . . 1 . . . Part Disruptions 6 | . . . . . . . . . . . . . . . . . . 1 . . . . . . . 5 . Actively Blocked 1 | . . . . . . . . . . . . . . . . . . . . . . . . . . 1 . Damage Taken 24386 | . 381 403 742 258 1310 809 675 635 323 190 . 763 444 1382 164 271 980 2640 345 . 878 15 2119 256 1511 6602 290 Core 3662 | . 27 12 217 81 232 96 92 57 49 74 . 77 53 132 . 34 239 667 190 . 283 . 13 23 55 936 23 Absorbed by Shields 4053 | . . . . . . . . . . . . . . 461 92 72 144 25 . . . . . . . 3224 35 Reduced by Siege Mode 83 | . . . . . . . . . . . . . . . . 7 7 . . . . . 51 . 5 13 . Redirected to Shielding 333 | . . . . . . . . 82 28 . . . . . . . . 101 . . . . 62 . . 60 . Ignored by Resistances 727 | . . . . . . . . . . . . . . 79 . . . . . . . . 203 . . 439 6 Regen/Repaired (Parts) 1014 | . . . . . 104 . . 23 . . . . 50 . . . . . . . . 505 103 . 229 . . Core Remaining (%) 60 | 100 . 84 . 25 57 . . . . . . 36 . . . . 46 . . 14 . . 74 . 94 35 98 Volleys Fired 724 | . 33 6 17 22 74 45 31 38 26 11 . 19 13 70 7 51 9 50 . . 1 . 35 9 30 121 6 Largest 4 | . 2 2 3 3 3 3 3 3 3 3 . 3 3 3 3 3 3 3 . . 2 . 3 4 4 4 1 Hottest 720 | . 60 60 83 168 112 84 86 84 84 84 . 117 121 133 240 720 240 181 . . 111 . 99 377 352 466 120 Shots Fired 1818 | . 61 10 30 52 213 135 91 112 54 30 . 46 30 158 18 60 25 91 . . 2 . 103 32 111 348 6 Gun 1506 | . 2 6 7 48 212 135 88 112 43 27 . 22 25 138 18 60 23 85 . . 2 . 103 26 110 210 4 Cannon 236 | . 55 2 14 . . . . . . . . . . 18 . . . 6 . . . . . 6 1 132 2 Launcher 76 | . 4 2 9 4 1 . 3 . 11 3 . 24 5 2 . . 2 . . . . . . . . 6 . Special . | . . . . . . . . . . . . . . . . . . . . . . . . . . . . Kinetic 1091 | . 57 8 21 . 194 135 88 112 43 27 . 22 16 123 12 44 . 54 . . 1 . 103 8 . 19 4 Thermal 600 | . . . . 48 15 . . . . . . . . 18 6 16 23 31 . . 1 . . 24 111 305 2 Explosive 50 | . 4 2 9 4 1 . 3 . 5 . . 14 4 2 . . 2 . . . . . . . . . . Electromagnetic 77 | . . . . . 3 . . . 6 3 . 10 10 15 . . . 6 . . . . . . . 24 . Robot Hit Streak 47 | . 4 3 5 8 17 19 24 47 11 8 . 19 8 10 8 7 6 13 . . 1 . 10 17 14 31 1 Robot Miss Streak 10 | . 3 1 4 3 4 3 2 2 2 2 . 2 2 3 4 5 3 10 . . 1 . 4 2 3 7 2 Penetration Max 1 | . . . . . . . . . . . . . . . . 1 . 1 . . . . 1 . . . . Secondary Targets 31 | . . . . 2 6 3 2 . . 1 . . 1 3 . . . 2 . . . . 3 1 3 4 . Max Gunslinging Chain 2 | . . . . 1 1 1 1 . . 1 . . 1 1 . . . 1 . . . . 1 1 2 2 . Shots Hit Robots 1214 | . 30 5 35 31 158 90 65 80 31 19 . 35 19 102 9 38 11 79 27 . 1 . 66 19 73 190 1 Core Hits 665 | . 12 8 22 14 76 34 24 31 25 14 . 53 21 39 3 21 22 94 19 . . . 27 9 26 69 2 Critical Kills 22 | . . . 1 . 4 . . . . . . . . 2 . 3 . 1 . . . . . 2 6 3 . Critical Parts Destroyed 23 | . . . . . . 2 . . . . . . . . . 4 . . 1 . . . 1 2 6 6 1 Critical Strikes 60 | . . 1 2 6 5 2 . . . . . . 2 2 . 7 . 1 1 . . . 1 4 12 13 1 Burn 7 | . . . . 6 1 . . . . . . . . . . . . . . . . . . . . . . Meltdown 4 | . . . . . . . . . . . . . . 2 . . . . . . . . . . . 2 . Destroy 42 | . . 1 . . 4 2 . . . . . . . . . 7 . 1 . . . . 1 4 12 9 1 Blast 2 | . . . . . . . . . . . . . . . . . . . . . . . . . . 2 . Corrupt 2 | . . . . . . . . . . . . . 2 . . . . . . . . . . . . . . Smash 2 | . . . 1 . . . . . . . . . . . . . . . 1 . . . . . . . . Sever 1 | . . . 1 . . . . . . . . . . . . . . . . . . . . . . . . Melee Attacks 70 | . . . 31 . . . . . . . . . . . . . . 4 32 . 3 . . . . . . Impact 19 | . . . 4 . . . . . . . . . . . . . . 4 11 . . . . . . . . Slashing 51 | . . . 27 . . . . . . . . . . . . . . . 21 . 3 . . . . . . Piercing . | . . . . . . . . . . . . . . . . . . . . . . . . . . . . Sneak Attacks 10 | . . . 3 . . . . . . . . . . . . . . 2 5 . . . . . . . . Combat Hostiles . | . . . . . . . . . . . . . . . . . . . . . . . . . . . . Follow-up Attacks . | . . . . . . . . . . . . . . . . . . . . . . . . . . . . Damage Inflicted 37923 | . 628 295 1347 678 2844 1535 1342 1714 1029 691 . 2586 780 2212 175 1394 1486 2765 2058 . 23 13 1646 574 1997 7907 204 Guns 22670 | . . 72 43 488 2792 1506 1125 1662 584 330 . 266 333 1678 175 1394 338 1836 . . 21 . 1608 439 1971 3999 10 Cannons 4267 | . 486 35 85 . . . . . . . . . . 358 . . . 52 . . . . . 119 . 3132 . Explosions 7511 | . 142 176 439 190 38 . 217 . 445 361 . 2320 446 160 . . 1148 568 . . . . . . . 765 96 Melee 3056 | . . . 780 . . . . . . . . . . . . . . 287 1989 . . . . . . . . Ramming 419 | . . 12 . . 14 29 . 52 . . . . 1 16 . . . 22 69 . 2 13 38 16 26 11 98 Kinetic 14703 | . 486 107 128 . 2577 1506 1125 1662 584 330 . 266 253 1506 96 888 . 897 . . 21 . 1608 115 . 538 10 Thermal 12262 | . . . . 488 164 . . . . 114 . . . 438 79 506 338 1265 . . . . . 443 1971 6456 . Explosive 4463 | . 142 176 439 190 38 . 217 . 115 . . 1630 351 80 . . 752 . . . . . . . . 237 96 Electromagnetic 3020 | . . . . . 51 . . . 330 247 . 690 175 172 . . 396 294 . . . . . . . 665 . Impact 817 | . . . 133 . . . . . . . . . . . . . . 287 397 . . . . . . . . Slashing 2239 | . . . 647 . . . . . . . . . . . . . . . 1592 . . . . . . . . Piercing . | . . . . . . . . . . . . . . . . . . . . . . . . . . . . Highest Corruption 46 | . . . . . . 1 1 7 7 7 7 7 2 11 33 33 35 9 19 19 1 1 1 1 3 46 3 Average Corruption 11 | . . . . . . 1 1 3 7 7 7 7 1 7 24 27 20 6 18 19 1 1 1 1 1 28 2 Corruption Purged 13 | . . . . . . . . . . . . . . . . 13 . . . . . . . . . . . Corruption Blocked . | . . . . . . . . . . . . . . . . . . . . . . . . . . . . Effects 360 | . . . . . . . 1 30 18 20 1 11 2 36 30 39 8 19 24 1 . 1 5 1 9 104 . Message Errors 80 | . . . . . . . 1 5 2 5 . 2 1 12 9 8 1 2 8 . . 1 1 . 2 20 . Matter Fused 91 | . . . . . . . . 8 6 4 . 2 . 7 9 11 4 5 10 1 . . 2 . . 22 . Heat Flow Errors 33 | . . . . . . . . . 1 2 1 1 . 4 3 1 . 2 2 . . . . 1 3 12 . Energy Discharges 42 | . . . . . . . . 5 3 1 . 2 1 1 3 6 . 4 2 . . . 1 . . 13 . Parts Rejected 3 | . . . . . . . . . . . . . . 1 1 . . . . . . . . . 1 . . Parts Fused 9 | . . . . . . . . 1 . 1 . . . 1 2 . . 2 . . . . . . 1 1 . Data Loss (minor) 27 | . . . . . . . . 3 2 1 . 1 . 3 2 2 . 1 2 . . . 1 . 2 7 . Data Loss (major) 19 | . . . . . . . . 4 2 3 . 1 . 1 . 6 . . . . . . . . . 2 . Misfires 10 | . . . . . . . . 1 . 3 . 1 . 1 . 2 . 1 . . . . . . . 1 . Alerts 9 | . . . . . . . . . . . . 1 . 1 . . 1 2 . . . . . . . 4 . Misdirections 8 | . . . . . . . . . . . . . . . . . . . . . . . . . . 8 . Weapon Failures 29 | . . . . . . . . 3 2 . . . . 4 1 3 2 . . . . . . . . 14 . Overload Shots 4 | . . . . . . . . . . . . . . . 1 3 . . . . . . . . . . . Overflow Damage 1091 | . . 3 168 . . . . . 2 . . 26 21 . . . . 137 467 . . . 23 . . 186 58 Projectiles 153 | . . . . . . . . . . . . . . . . . . . . . . . . . . 153 . Explosions 99 | . . 3 11 . . . . . 2 . . 26 21 . . . . 3 . . . . . . . 33 . Melee 839 | . . . 157 . . . . . . . . . . . . . . 134 467 . . . 23 . . . 58 Knockbacks 16 | . 5 1 2 . . . . 2 . . . . . 1 . . . 1 . . . . . . . 4 . Impact 5 | . . 1 . . . . . 2 . . . . . 1 . . . 1 . . . . . . . . . Kinetic 10 | . 5 . 1 . . . . . . . . . . . . . . . . . . . . . . 4 . Secondary 1 | . . . 1 . . . . . . . . . . . . . . . . . . . . . . . . Self-Inflicted Damage 599 | . 9 . . 16 24 . 13 . . . . 44 66 . . . 102 151 30 . 1 . . . . 94 49 Shots 20 | . 1 . . 1 1 . 1 . . . . 3 4 . . . 1 4 . . . . . . . 4 . Rammed 41 | . . 3 . . 1 . . . . . . . . . . . . 3 26 . 2 1 1 1 . 2 1 Targets Rammed 50 | . . 3 . . 1 2 . 3 . . . . 1 2 . . . 3 26 . 2 1 1 1 1 2 1 Kicked 8 | . . . . . . 2 . 3 . . . . 1 2 . . . . . . . . . . . . . Crushed 1 | . . . . . . . . . . . . . . . . . . . . . . . . . 1 . . Highest Temperature 610 | . 45 . 48 559 295 181 73 54 244 138 126 271 16 233 230 610 369 142 241 . 56 263 322 229 195 442 48 Average Temperature 83 | . 15 . 17 162 89 56 18 11 33 47 73 83 8 75 64 130 189 53 105 . 27 123 123 90 44 94 28 Received Heat Transfer 4698 | . 210 . 153 66 486 309 135 102 150 45 . 180 162 383 11 41 137 525 . . 177 . 514 36 87 783 6 Effects 19 | . . . . 11 1 . . . . . . . . . 1 . 2 . . . . . 1 . . 3 . Shutdowns 4 | . . . . 2 . . . . . . . . . . . . . . . . . . . . . 2 . Energy Bleed 2 | . . . . . . . . . . . . . . . 1 . 1 . . . . . . . . . . Interference 3 | . . . . 2 1 . . . . . . . . . . . . . . . . . . . . . . Matter Decay 2 | . . . . 1 . . . . . . . . . . . . . . . . . . . . . 1 . Short Circuit 2 | . . . . 1 . . . . . . . . . . . . . . . . . . 1 . . . . Damage (minor) 2 | . . . . 1 . . . . . . . . . . . . 1 . . . . . . . . . . Damage (major) 4 | . . . . 4 . . . . . . . . . . . . . . . . . . . . . . . Siege Activations 6 | . . . . . . . . . . . . . . . . 1 1 . . . . . 2 . 1 1 . Total Turns 63 | . . . . . . . . . . . . . . . . 10 7 . . . . . 24 . 12 10 . Longest Duration 20 | . . . . . . . . . . . . . . . . 10 7 . . . . . 20 . 12 10 . Martial Activations . | . . . . . . . . . . . . . . . . . . . . . . . . . . . . Shielding Activations . | . . . . . . . . . . . . . . . . . . . . . . . . . . . . Robots Disrupted 3 | . . . . . . . . . . . . . 1 1 . . . . . . . . . . . 1 . Combat Hostiles 2 | . . . . . . . . . . . . . 1 1 . . . . . . . . . . . . . Robots Corrupted 12 | . . . . . . . . . . . . . 1 . . . 1 1 3 . . . 1 . . 4 1 Combat Hostiles 7 | . . . . . . . . . . . . . 1 . . . . . 3 . . . . . . 3 . Parts Fried 23 | . . . . . . . . . 3 . . . 3 2 . . 2 1 5 . . . 1 . . 5 1 Impact Corruptions 14 | . . . 2 . . . . . . . . . . . . . . 3 6 . . . 1 . . . 2 Robots Melted 9 | . . . . . . . . . . . . . . 2 . . . . . . . . . . 2 5 . Combat Hostiles 8 | . . . . . . . . . . . . . . 2 . . . . . . . . . . 2 4 . Parts Melted 41 | . . . . 4 . . . . . . . . . 5 . 3 1 2 . . . . . 2 9 15 . Heat Transferred 15539 | . . . . 1554 444 . . . . 200 . . . 550 74 483 296 1800 . . . . . 555 2849 6734 . Parts Sabotaged . | . . . . . . . . . . . . . . . . . . . . . . . . . . . . Parts Stolen . | . . . . . . . . . . . . . . . . . . . . . . . . . . . . Parts Stripped . | . . . . . . . . . . . . . . . . . . . . . . . . . . . . Power Chain Reactions 11 | . . . . . . . . . . 3 . . . . . . . 7 . . . . . . . 1 . Alert | -11 -10 -10 -9 -9 -8 -7 -7 -7 -7 -7 -7 -6 -6 -6 -6 -6 -6 -5 -5 -5 -4 -4 -4 -3 -3 -2 -1 ------- Run | Yrd Mat Min Mat Min Mat Fac Gar Fac Low Low Dat Pro Fac Ext Cet Arc Hub Fac Upp Upp Fac Was Fac Res Tes Res Acc Maximum Alert Level 3 | . . . 1 . 2 1 2 1 . . . . 1 2 2 1 2 3 . . . . 3 1 . 3 2 Low Security (%) 49 | 100 100 100 92 100 31 39 . 82 . . . . 55 15 . 28 82 43 . . 100 100 29 15 100 44 . Level 1 27 | . . . 7 . 41 60 47 17 . . . . 44 27 76 71 . 21 . . . . . 84 . 14 . Level 2 17 | . . . . . 27 . 52 . . . . . . 56 23 . 17 28 . . . . 66 . . 7 100 Level 3 5 | . . . . . . . . . . . . . . . . . . 5 . . . . 3 . . 33 . Level 4 . | . . . . . . . . . . . . . . . . . . . . . . . . . . . . Level 5 . | . . . . . . . . . . . . . . . . . . . . . . . . . . . . High Security . | . . . . . . . . . . . . . . . . . . . . . . . . . . . . Max Security . | . . . . . . . . . . . . . . . . . . . . . . . . . . . . Peak Influence 929 | . 131 100 221 118 503 345 510 267 . . . . 268 679 462 353 679 929 . . 194 61 712 360 183 916 653 Initial 523 | . . 37 . 82 33 210 247 267 . . . . 182 116 348 136 46 312 . . 194 29 . 360 93 56 523 Average 272 | . 48 27 78 74 286 221 382 154 . . . . 195 444 362 249 156 326 . . 175 13 421 255 121 429 605 Influence Increases 11863 | . 281 115 421 233 898 377 293 449 345 170 . 470 294 1054 344 339 720 1233 110 . 11 66 1284 141 297 1728 190 Destroy 0b10 Robot/C 5440 | . 160 80 240 140 600 240 220 160 140 140 . 440 120 580 160 80 80 320 80 . . . 440 100 220 680 20 Destroy 0b10 Robot/NC 455 | . 5 . 35 20 60 30 . 50 . 10 . . . 10 10 45 10 55 5 . . . 25 . 20 60 5 Destroy Leader 1054 | . 50 10 64 30 138 62 30 76 10 20 . 30 30 80 . . 20 74 10 . . . 104 20 40 156 . Allied During Kill 912 | . . . 3 . . . . . . . . . . 248 140 125 71 . . . . . 325 . . . . Successful Hack 320 | . 5 12 12 . . 28 . 116 . . . . 3 16 . . . 60 . . 9 . . . . 11 48 Select Force Hacks 210 | . . . . . 50 . . 30 . . . . . . . . . 80 . . . . . . . 50 . Disable Machine 1110 | . 30 . 30 15 30 15 . 15 . . . . 60 60 15 75 165 300 . . . . 180 15 15 60 30 Anti-Garrison Action 300 | . . . . . . . . . . . . . . . . . 150 . . . . . . . . 150 . Destroy Structure 1027 | . 16 13 37 28 5 2 28 2 . . . . 36 45 19 14 224 14 . . 2 66 210 6 2 186 72 Partial Spotted 60 | . . . . . . . . . . . . . . . . . . 15 . . . . . . . 30 15 Lose Combat Pursuer 975 | . 15 . . . 15 . 15 . 195 . . . 45 15 . . . 315 15 . . . . . . 345 . Influence Decreases 11310 | . 184 212 210 359 520 487 136 787 312 310 65 180 346 668 628 546 214 951 636 86 235 151 598 660 364 956 509 Entered New Map 3518 | . . 60 . 129 52 253 106 243 64 40 65 . 108 122 276 204 87 327 342 76 115 56 . 326 74 44 349 Time Decay 6205 | . 184 152 160 190 458 214 . 534 238 270 . 140 198 386 302 342 60 294 254 10 30 95 328 334 270 612 150 Lost Part 990 | . . . 30 40 10 20 30 . 10 . . 40 40 60 10 . 30 180 40 . 90 . 30 . 20 300 10 Lost Ally 447 | . . . 20 . . . . 10 . . . . . 100 40 . 37 . . . . . 240 . . . . Purge Threat 150 | . . . . . . . . . . . . . . . . . . 150 . . . . . . . . . Squads Dispatched 92 | . 4 . 2 . 6 6 . 8 . . . 1 4 3 . . 5 8 . . 5 . 3 6 4 22 5 Investigation 37 | . 3 . 2 . 2 3 . 5 . . . 1 3 1 . . 1 4 . . 1 . . 4 1 3 3 Extermination 16 | . . . . . . . . 3 . . . . 1 . . . . 1 . . . . 1 . 1 7 2 Reinforcement 27 | . 1 . . . 4 2 . . . . . . . 2 . . 2 3 . . 1 . 2 2 . 8 . Assault 8 | . . . . . . . . . . . . . . . . . 2 . . . 2 . . . . 4 . Garrison 4 | . . . . . . 1 . . . . . . . . . . . . . . 1 . . . 2 . . Intercept . | . . . . . . . . . . . . . . . . . . . . . . . . . . . . Searches Triggered . | . . . . . . . . . . . . . . . . . . . . . . . . . . . . Data Miner Redirects 2 | . . . . . . . . . . . . . . . . . . . . . . . . . . 1 1 Construction Impeded 4 | . . . . . . 1 . . . . . . . 1 . . . . . . . . . . . 2 . Haulers Reinforced 3 | . . . . . . 1 . . . . . . . . . . . 1 . . . . . . . 1 . Active Scanning Responses . | . . . . . . . . . . . . . . . . . . . . . . . . . . . . Cargo Convoy Interrupts . | . . . . . . . . . . . . . . . . . . . . . . . . . . . . Stealth | -11 -10 -10 -9 -9 -8 -7 -7 -7 -7 -7 -7 -6 -6 -6 -6 -6 -6 -5 -5 -5 -4 -4 -4 -3 -3 -2 -1 --------- Run | Yrd Mat Min Mat Min Mat Fac Gar Fac Low Low Dat Pro Fac Ext Cet Arc Hub Fac Upp Upp Fac Was Fac Res Tes Res Acc Distress Signals 34 | . 1 . 1 . 5 1 . . . . . . 1 2 2 . 1 3 . . . . 2 7 2 5 1 Communications Jammed 30 | . . . . . . . . . . . . . . 30 . . . . . . . . . . . . . Distress Signals 30 | . . . . . . . . . . . . . . 30 . . . . . . . . . . . . . Times Spotted 477 | . 9 5 13 7 37 20 12 11 16 8 . 23 20 31 9 24 18 53 7 . 11 7 22 9 16 76 13 Peak Tracking Total 15 | . 2 2 3 3 4 5 5 3 4 4 . 10 4 8 5 3 14 15 5 . 10 4 5 4 5 12 7 Tactical Retreats 39 | . 1 . . . 1 . 1 . 6 . . . 4 1 . . . 7 1 . . . . . . 14 3 ECM-based Alert Blocks 29 | . . . . . . . . . . . . . 8 . . . . . . . . . . . . 12 9 Traps | -11 -10 -10 -9 -9 -8 -7 -7 -7 -7 -7 -7 -6 -6 -6 -6 -6 -6 -5 -5 -5 -4 -4 -4 -3 -3 -2 -1 ------- Run | Yrd Mat Min Mat Min Mat Fac Gar Fac Low Low Dat Pro Fac Ext Cet Arc Hub Fac Upp Upp Fac Was Fac Res Tes Res Acc Traps Triggered 19 | . 1 . 1 . 1 1 . 3 . . . . 1 2 . . 1 1 . . 2 . . . 2 3 . Indirectly 1 | . . . . . . . . . . . . . . . . . 1 . . . . . . . . . . Trap Hack Attempts . | . . . . . . . . . . . . . . . . . . . . . . . . . . . . Triggered . | . . . . . . . . . . . . . . . . . . . . . . . . . . . . Disarmed . | . . . . . . . . . . . . . . . . . . . . . . . . . . . . Reprogrammed . | . . . . . . . . . . . . . . . . . . . . . . . . . . . . Reused 1 | . . . . . . . . . . 1 . . . . . . . . . . . . . . . . . Traps Extracted . | . . . . . . . . . . . . . . . . . . . . . . . . . . . . Installed 1 | . . . . . . . . . . 1 . . . . . . . . . . . . . . . . . Triggered 1 | . . . . . . . . . . 1 . . . . . . . . . . . . . . . . . Most Traps Carried 3 | . . . . . . . . . . 3 3 3 3 3 3 3 3 3 3 3 3 3 . . . . . Machines | -11 -10 -10 -9 -9 -8 -7 -7 -7 -7 -7 -7 -6 -6 -6 -6 -6 -6 -5 -5 -5 -4 -4 -4 -3 -3 -2 -1 ---------- Run | Yrd Mat Min Mat Min Mat Fac Gar Fac Low Low Dat Pro Fac Ext Cet Arc Hub Fac Upp Upp Fac Was Fac Res Tes Res Acc Machines Disabled 82 | . 2 . 2 1 2 1 . 1 . . . 3 4 5 2 5 12 20 1 . . . 12 1 1 5 2 Max in Single Turn 12 | . 1 . 1 1 1 1 . 1 . . . 1 2 1 1 1 12 9 1 . . . 1 1 1 1 1 Garrison Access 5 | . . . . . . . . 1 . . . . . . . . 1 1 . . 1 . . . . 1 . Network Hub 2 | . . . . . . . . . . . . . . . . . 2 . . . . . . . . . . Energy Cycler 2 | . . . . . . . . . . . . . . 1 . . . . . . . . . . . . 1 Machines Repaired . | . . . . . . . . . . . . . . . . . . . . . . . . . . . . Machines Dismantled . | . . . . . . . . . . . . . . . . . . . . . . . . . . . . Machines Sabotaged 1 | . . . . . 1 . . . . . . . . . . . . . . . . . . . . . . Overloaded Fab Kills 8 | . . . . . . . . . . . . . . . . . . 2 . . . . . . . 6 . Hacking | -11 -10 -10 -9 -9 -8 -7 -7 -7 -7 -7 -7 -6 -6 -6 -6 -6 -6 -5 -5 -5 -4 -4 -4 -3 -3 -2 -1 --------- Run | Yrd Mat Min Mat Min Mat Fac Gar Fac Low Low Dat Pro Fac Ext Cet Arc Hub Fac Upp Upp Fac Was Fac Res Tes Res Acc Machines Accessed 77 | . 4 1 4 . 4 5 . 12 . . 4 1 6 3 1 . 1 10 . . 2 . . 3 2 8 6 Terminals 42 | . 4 1 2 . 3 2 . 7 . . . 1 2 2 1 . 1 4 . . 1 . . 2 . 4 5 Fabricators 7 | . . . . . . 1 . . . . . . 1 . . . . 3 . . . . . . . 2 . Repair Stations 5 | . . . . . 1 . . 1 . . . . 2 . . . . . . . . . . . 1 . . Recycling Units 5 | . . . . . . . . . . . . . 1 1 . . . 1 . . . . . . . 2 . Scanalyzers 9 | . . . 2 . . 1 . 3 . . . . . . . . . 1 . . . . . 1 . . 1 Garrison Access 5 | . . . . . . 1 . 1 . . . . . . . . . 1 . . 1 . . . 1 . . Total Hacks 297 | . 16 3 14 . 13 15 . 31 . . 26 6 13 10 1 . 1 63 . . 13 . . 11 3 35 23 Successful 134 | . 6 2 8 . 4 3 . 15 . . 26 6 7 6 . . 1 32 . . 2 . . . 1 11 4 Failed 162 | . 10 1 6 . 9 12 . 15 . . . . 6 4 1 . . 31 . . 11 . . 11 2 24 19 Catastrophic 39 | . 1 . . . 1 3 . 2 . . . . . 1 1 . . 6 . . 5 . . 1 1 9 8 Database Lockouts 1 | . . . . . . . . 1 . . . . . . . . . . . . . . . . . . . Manual 103 | . 14 . 1 . 3 2 . 7 . . . . 6 3 1 . 1 30 . . . . 1 6 1 12 15 Terminals 163 | . 16 3 7 . 9 7 . 15 . . . 6 5 7 1 . 1 34 . . 9 . . 6 . 20 17 Fabricators 20 | . . . . . . 4 . . . . . . 2 . . . . 8 . . . . . . . 6 . Repair Stations 11 | . . . . . 4 . . 2 . . . . 4 . . . . . . . . . . . 1 . . Recycling Units 20 | . . . . . . . . . . . . . 2 3 . . . 6 . . . . . . . 9 . Scanalyzers 43 | . . . 7 . . 2 . 13 . . . . . . . . . 10 . . . . . 5 . . 6 Garrison Access 14 | . . . . . . 2 . 1 . . . . . . . . . 5 . . 4 . . . 2 . . Terminal Hacks 69 | . 4 2 3 . 1 1 . 4 . . 26 6 2 4 . . . 9 . . 2 . . . . 4 1 Record 18 | . 1 . . . . . . . . . 11 6 . . . . . . . . . . . . . . . Part Schematic 13 | . . . . . . . . . . . 9 . . 3 . . . . . . 1 . . . . . . Robot Schematic 3 | . . . . . . . . . . . 3 . . . . . . . . . . . . . . . . Robot Analysis 2 | . 1 . . . . . . . . . . . . . . . . 1 . . . . . . . . . Prototype ID Bank 4 | . . . 1 . . . . . . . 3 . . . . . . . . . . . . . . . . Open Door 1 | . . . . . . . . . . . . . 1 . . . . . . . . . . . . . . Level Access Points 1 | . . . . . . . . . . . . . . . . . . 1 . . . . . . . . . Branch Access Points 4 | . 1 . 1 . . . . 1 . . . . . . . . . 1 . . . . . . . . . Terminal Index 4 | . . . . . . . . 1 . . . . . . . . . 2 . . . . . . . 1 . Alert Level 6 | . . . . . . . . 1 . . . . . 1 . . . 1 . . 1 . . . . 1 1 Unreport Threat 1 | . . . . . . . . . . . . . . . . . . 1 . . . . . . . . . Locate Traps 5 | . . . . . 1 1 . 1 . . . . . . . . . . . . . . . . . 2 . Patrol Status 2 | . . 1 . . . . . . . . . . . . . . . 1 . . . . . . . . . Hauler Manifests 2 | . 1 . . . . . . . . . . . . . . . . 1 . . . . . . . . . Zone Layout 3 | . . 1 1 . . . . . . . . . 1 . . . . . . . . . . . . . . Fabricator Hacks 7 | . . . . . . 1 . . . . . . 2 . . . . 3 . . . . . . . 1 . Network Status 1 | . . . . . . 1 . . . . . . . . . . . . . . . . . . . . . Load Schematic 4 | . . . . . . . . . . . . . 1 . . . . 2 . . . . . . . 1 . Build 2 | . . . . . . . . . . . . . 1 . . . . 1 . . . . . . . . . Repair Station Hacks 2 | . . . . . 2 . . . . . . . . . . . . . . . . . . . . . . Scan Component 1 | . . . . . 1 . . . . . . . . . . . . . . . . . . . . . . Repair 1 | . . . . . 1 . . . . . . . . . . . . . . . . . . . . . . Recycling Unit Hacks 9 | . . . . . . . . . . . . . 1 2 . . . 3 . . . . . . . 3 . Process 2 | . . . . . . . . . . . . . . . . . . 1 . . . . . . . 1 . Report Inventory 4 | . . . . . . . . . . . . . 1 1 . . . 1 . . . . . . . 1 . Retrieve Matter 2 | . . . . . . . . . . . . . . . . . . 1 . . . . . . . 1 . Retrieve Components 1 | . . . . . . . . . . . . . . 1 . . . . . . . . . . . . . Scanalyzer 23 | . . . 5 . . . . 6 . . . . . . . . . 9 . . . . . . . . 3 Insert Component 3 | . . . 1 . . . . 1 . . . . . . . . . 1 . . . . . . . . . Analyze 4 | . . . . . . . . 1 . . . . . . . . . 3 . . . . . . . . . Retrieve Study 16 | . . . 4 . . . . 4 . . . . . . . . . 5 . . . . . . . . 3 Garrison Access Hacks 3 | . . . . . . 1 . 1 . . . . . . . . . 1 . . . . . . . . . Unlock Access 1 | . . . . . . 1 . . . . . . . . . . . . . . . . . . . . . Seal Access 2 | . . . . . . . . 1 . . . . . . . . . 1 . . . . . . . . . Unauthorized Hacks 21 | . 2 . . . 1 . . 4 . . . . 2 . . . 1 7 . . . . . . 1 3 . Terminals 12 | . 2 . . . 1 . . 2 . . . . 1 . . . 1 3 . . . . . . . 2 . Assimilate 1 | . . . . . . . . 1 . . . . . . . . . . . . . . . . . . . Botnet 7 | . 2 . . . . . . 1 . . . . 1 . . . . 1 . . . . . . . 2 . Skim 2 | . . . . . . . . . . . . . . . . . . 2 . . . . . . . . . Sabotage 2 | . . . . . 1 . . . . . . . . . . . 1 . . . . . . . . . . Fabricators 4 | . . . . . . . . . . . . . . . . . . 3 . . . . . . . 1 . Prioritize 1 | . . . . . . . . . . . . . . . . . . 1 . . . . . . . . . Overload 2 | . . . . . . . . . . . . . . . . . . 1 . . . . . . . 1 . Recompile 1 | . . . . . . . . . . . . . . . . . . 1 . . . . . . . . . Repair Stations 3 | . . . . . . . . 1 . . . . 1 . . . . . . . . . . . 1 . . Patch 3 | . . . . . . . . 1 . . . . 1 . . . . . . . . . . . 1 . . Recycling Units . | . . . . . . . . . . . . . . . . . . . . . . . . . . . . Scanalyzers 2 | . . . . . . . . 1 . . . . . . . . . 1 . . . . . . . . . Extract 2 | . . . . . . . . 1 . . . . . . . . . 1 . . . . . . . . . Garrison Access . | . . . . . . . . . . . . . . . . . . . . . . . . . . . . Data Cores Recovered 3 | . . . . . . 1 . . . . . . . . . . . . . . . . 2 . . . . Used 1 | . . . . . . 1 . . . . . . . . . . . . . . . . . . . . . Hacking Detections 63 | . 4 1 4 . 4 5 . 11 . . . 1 4 3 1 . . 7 . . 2 . 1 3 . 6 6 Full Trace Events 24 | . 2 . 2 . 1 3 . 3 . . . 1 2 1 . . . 1 . . 1 . . 2 . 2 3 Feedback Events 4 | . . . . . . . . 1 . . . . . 1 . . . . . . . . . 1 . . 1 Corruption 4 | . . . . . . . . 1 . . . . . 1 . . . . . . . . . 1 . . 1 Feedback Blocked 1 | . . . . . . . . . . . . . . . . . . . . . . . . . . . 1 Robot Schematics Acquired 3 | . . . . . . . . . . . 3 . . . . . . . . . . . . . . . . Robots Built . | . . . . . . . . . . . . . . . . . . . . . . . . . . . . Authchips . | . . . . . . . . . . . . . . . . . . . . . . . . . . . . Time . | . . . . . . . . . . . . . . . . . . . . . . . . . . . . Total Robot Build Rating . | . . . . . . . . . . . . . . . . . . . . . . . . . . . . Part Schematics Acquired 19 | . . . . . . . . 2 . . 9 . . 3 . . . 4 . . 1 . . . . . . Parts Built 3 | . . . . . . . . . . . . . 2 . . . . 1 . . . . . . . . . Authchips . | . . . . . . . . . . . . . . . . . . . . . . . . . . . . Time 74 | . . . . . . . . . . . . . 36 . . . . 38 . . . . . . . . . Total Part Build Rating 11 | . . . . . . . . . . . . . 6 . . . . 5 . . . . . . . . . Part Studies Acquired 16 | . . . 4 . . . . 4 . . . . . . . . . 5 . . . . . . . . 3 Parts Repaired 1 | . . . . . 1 . . . . . . . . . . . . . . . . . . . . . . Time 60 | . . . . . 60 . . . . . . . . . . . . . . . . . . . . . . Parts Recycled . | . . . . . . . . . . . . . . . . . . . . . . . . . . . . Recycled Matter 330 | . . . . . . . . . . . . . . . . . . 291 . . . . . . . 39 . Retrieved Matter 330 | . . . . . . . . . . . . . . . . . . 291 . . . . . . . 39 . Retrieved Components 3 | . . . . . . . . . . . . . . 3 . . . . . . . . . . . . . Parts Scanalyzed 2 | . . . . . . . . 1 . . . . . . . . . 1 . . . . . . . . . Part Schematics Acquired 2 | . . . . . . . . 1 . . . . . . . . . 1 . . . . . . . . . Parts Damaged . | . . . . . . . . . . . . . . . . . . . . . . . . . . . . Bothacking | -11 -10 -10 -9 -9 -8 -7 -7 -7 -7 -7 -7 -6 -6 -6 -6 -6 -6 -5 -5 -5 -4 -4 -4 -3 -3 -2 -1 ------------ Run | Yrd Mat Min Mat Min Mat Fac Gar Fac Low Low Dat Pro Fac Ext Cet Arc Hub Fac Upp Upp Fac Was Fac Res Tes Res Acc Used RIF Installer . | . . . . . . . . . . . . . . . . . . . . . . . . . . . . Robots Hacked . | . . . . . . . . . . . . . . . . . . . . . . . . . . . . Non-combat . | . . . . . . . . . . . . . . . . . . . . . . . . . . . . Combat . | . . . . . . . . . . . . . . . . . . . . . . . . . . . . Robot Hacks Applied . | . . . . . . . . . . . . . . . . . . . . . . . . . . . . Relay Couplers Released 3 | . . . . . . . . . . . . . . . . . 2 . . . 1 . . . . . . Machine Destruction 3 | . . . . . . . . . . . . . . . . . 2 . . . 1 . . . . . . Fabnet Peak Effective % . | . . . . . . . . . . . . . . . . . . . . . . . . . . . . Robots Rewired 6 | . . . . . . . . . . . . . . 6 . . . . . . . . . . . . . Allies Hacked . | . . . . . . . . . . . . . . . . . . . . . . . . . . . . Hacks Repelled . | . . . . . . . . . . . . . . . . . . . . . . . . . . . . Allies | -11 -10 -10 -9 -9 -8 -7 -7 -7 -7 -7 -7 -6 -6 -6 -6 -6 -6 -5 -5 -5 -4 -4 -4 -3 -3 -2 -1 -------- Run | Yrd Mat Min Mat Min Mat Fac Gar Fac Low Low Dat Pro Fac Ext Cet Arc Hub Fac Upp Upp Fac Was Fac Res Tes Res Acc Total Allies 42 | . . 2 . . . . . 1 . . . . . 15 5 . . . . . . 19 . . . . . Largest Group 19 | . . 2 1 . . . . 1 . . . . . 9 12 10 6 . . . . 19 19 . . . . Highest-Rated Group 814 | . . 42 11 . . . . 10 . . . . . 406 814 686 373 . . . . 702 702 . . . . Highest-Rated Ally 159 | . . 31 11 . . . . 10 . . . . . 159 159 143 96 . . . . 50 50 . . . . Total Orders 2 | . . . . . . . . . . . . . . . . 2 . . . . . . . . . . . STAY 1 | . . . . . . . . . . . . . . . . 1 . . . . . . . . . . . FOLLOW 1 | . . . . . . . . . . . . . . . . 1 . . . . . . . . . . . Ally Attacks 437 | . . 1 . . . . . . . . . . . 80 49 29 32 . . . . 126 120 . . . . Total Damage 12265 | . . 21 . . . . . . . . . . . 2452 1572 706 550 . . . . 3577 3387 . . . . Kills 56 | . . . . . . . . . . . . . . 16 11 5 2 . . . . 6 16 . . . . Allies Corrupted 3 | . . . . . . . . . . . . . . . . . 1 . . . . . 2 . . . . Allies Melted . | . . . . . . . . . . . . . . . . . . . . . . . . . . . . Intel | -11 -10 -10 -9 -9 -8 -7 -7 -7 -7 -7 -7 -6 -6 -6 -6 -6 -6 -5 -5 -5 -4 -4 -4 -3 -3 -2 -1 ------- Run | Yrd Mat Min Mat Min Mat Fac Gar Fac Low Low Dat Pro Fac Ext Cet Arc Hub Fac Upp Upp Fac Was Fac Res Tes Res Acc Active Infowar (turns) 3374 | . 208 368 246 312 305 . . . . . . . 212 194 . . . . . . 54 2 42 550 . 574 307 Optics 1167 | . 208 368 . . . . . . . . . . . . . . . . . . . . 41 550 . . . Sensors 1562 | . . . 246 190 . . . . . . . . . . . . . . . . . . . 382 . 438 306 IFF 54 | . . . . . . . . . . . . . . . . . . . . . 54 . . . . . . Terrain 1236 | . . . . 56 305 . . . . . . . . . . . . . . . . . . . . 569 306 Structural 89 | . . . . 89 . . . . . . . . . . . . . . . . . . . . . . . Machine Analysis 2 | . . . . . . . . . . . . . . . . . . . . . . . . . . 2 . Jamming 194 | . . . . . . . . . . . . . . 194 . . . . . . . . . . . . . ECM 844 | . . . . . . . . . . . . . 212 . . . . . . . . 2 1 . . 351 278 Robot Analysis Total 2 | . 1 . . . . . . . . . . . . . . . . 1 . . . . . . . . . Derelict Logs Recovered 6 | . . 1 . 2 . . . . . 1 . 1 . . . . . . 1 . . . . . . . . Drone Launches . | . . . . . . . . . . . . . . . . . . . . . . . . . . . . Drone Recoveries . | . . . . . . . . . . . . . . . . . . . . . . . . . . . . Exploration | -11 -10 -10 -9 -9 -8 -7 -7 -7 -7 -7 -7 -6 -6 -6 -6 -6 -6 -5 -5 -5 -4 -4 -4 -3 -3 -2 -1 ------------- Run | Yrd Mat Min Mat Min Mat Fac Gar Fac Low Low Dat Pro Fac Ext Cet Arc Hub Fac Upp Upp Fac Was Fac Res Tes Res Acc Turns Passed 15866 | 12 452 448 352 393 1146 458 376 1510 504 583 112 379 408 913 666 773 138 649 544 26 78 451 843 750 591 2003 308 Spaces Moved 11659 | 11 217 250 247 300 529 296 195 1130 350 501 99 296 302 617 400 214 60 843 395 17 40 303 422 441 246 2182 756 Core 166 | . . . . 2 . . . . . . . . . . . . 5 49 21 . 3 80 . . . 6 . Treads 2468 | . 197 250 . . 446 . . 1 . . . . . . 51 214 50 . 172 17 37 98 422 441 72 . . Legs 4290 | 11 20 . . . . 296 195 1129 350 501 99 296 302 617 349 . . . . . . 125 . . . . . Wheels 1577 | . . . 247 298 83 . . . . . . . . . . . . 47 . . . . . . 174 728 . Hover 206 | . . . . . . . . . . . . . . . . . . 206 . . . . . . . . . Flight 2952 | . . . . . . . . . . . . . . . . . 5 541 202 . . . . . . 1448 756 Fastest Speed 28 | 120 120 160 70 85 85 90 97 105 105 105 105 105 82 82 120 160 35 34 35 160 50 50 145 153 145 29 28 Average Speed 99 | 120 156 160 75 90 148 92 135 116 105 105 105 105 98 97 142 160 140 43 97 160 151 121 152 153 180 60 30 Slowest Speed 650 | 120 160 160 100 450 240 180 186 160 105 105 105 105 170 167 190 160 160 150 240 160 160 650 153 153 225 210 35 Overloaded Moves 176 | . . . . . . . . . . . . . . . . . . 176 . . . . . . . . . Propulsion Burnouts . | . . . . . . . . . . . . . . . . . . . . . . . . . . . . Robots Hopped 27 | . . . . . . . . . . . . . . . . . . 4 . . . . . . . 17 6 Potential Cave-ins . | . . . . . . . . . . . . . . . . . . . . . . . . . . . . Cave-ins Triggered . | . . . . . . . . . . . . . . . . . . . . . . . . . . . . Teleports 2 | . . . . . 1 . 1 . . . . . . . . . . . . . . . . . . . . Exploration Rate (%) 43 | 2 47 73 26 74 40 11 42 30 58 86 69 63 10 75 89 82 17 33 51 3 2 92 19 13 34 48 21 Regions Visited 27 Branch Regions 13 Pre-discovered Areas 2 | . . . . 1 . . . . . . 1 . . . . . . . . . . . . . . . . Known Exits Taken 10 | . 1 . 1 . . 1 . 1 . . . 1 1 . . . . 1 . 1 . . . . 1 1 . Unknown Exits Taken 14 | 1 . 1 . 1 1 . . . 1 1 1 . . 1 1 1 1 . 1 . . . 1 1 . . . Scrap Searched 10 | . . . . 2 . . . . 1 6 . . . . . . . . 1 . . . . . . . . Spaces Dug 5 | . . . . . . . . . . . . . . . . . . . 1 . 1 . . . . 3 . Terrain Destroyed 826 | . 16 18 45 32 3 . 3 . 71 22 . 65 64 56 2 12 318 8 1 . 1 . 2 4 . 60 23 Melee 2 | . . . . . . . . . . . . . . . . . . . 1 . 1 . . . . . . Projectile 83 | . . . . . . . . . 1 . . . . 5 2 12 6 1 . . . . 2 4 . 50 . AOE 741 | . 16 18 45 32 3 . 3 . 70 22 . 65 64 51 . . 312 7 . . . . . . . 10 23 Terrain Rammed . | . . . . . . . . . . . . . . . . . . . . . . . . . . . . Walls Destroyed . | . . . . . . . . . . . . . . . . . . . . . . . . . . . . Machines Disabled . | . . . . . . . . . . . . . . . . . . . . . . . . . . . . Actions | -11 -10 -10 -9 -9 -8 -7 -7 -7 -7 -7 -7 -6 -6 -6 -6 -6 -6 -5 -5 -5 -4 -4 -4 -3 -3 -2 -1 --------- Run | Yrd Mat Min Mat Min Mat Fac Gar Fac Low Low Dat Pro Fac Ext Cet Arc Hub Fac Upp Upp Fac Was Fac Res Tes Res Acc Total 14445 | 10 268 285 350 373 769 425 238 1243 435 534 110 324 387 801 493 589 92 1020 500 16 51 387 536 492 317 2581 819 Wait 1053 | . . 15 19 44 90 56 . 7 48 18 . . 38 23 32 304 13 36 10 . . 38 59 7 12 152 32 Move 11584 | 10 216 249 246 299 528 296 194 1129 349 500 98 295 301 616 399 213 59 834 394 16 40 302 421 440 245 2151 744 Hop 23 | . . . . . . . . . . . . . . . . . . 4 . . . . . . . 14 5 Pick Up 109 | . 5 1 7 . 14 6 2 14 1 . 3 . 4 7 4 7 . 4 5 . . 4 . 2 2 12 5 Fast Attach 177 | . 1 . 8 3 8 1 3 . . . . . 7 8 8 1 1 30 16 . 1 15 6 3 7 41 9 Attach 100 | . 2 1 7 1 5 6 2 2 1 . 3 5 8 10 10 1 3 14 4 . . 5 . 1 . 4 5 Detach 71 | . . . 4 . 5 1 1 2 . . . . 8 5 14 . 2 11 2 . . 8 . 1 . 3 4 Swap 249 | . 7 7 7 3 23 5 3 26 10 4 . 5 4 20 7 5 3 9 4 . . 3 11 19 14 50 . Drop 192 | . 4 3 4 1 21 7 2 22 . . 6 . 3 9 12 7 2 9 7 . 4 11 3 9 6 32 8 Fire 724 | . 33 6 17 22 74 45 31 38 26 11 . 19 13 70 7 51 9 50 . . 1 . 35 9 30 121 6 Melee 70 | . . . 31 . . . . . . . . . . . . . . 4 32 . 3 . . . . . . Ram 32 | . . . . . . . . . . . . . . . . . . 3 26 . 1 . . . . 1 1 Kick 8 | . . . . . . 2 . 3 . . . . 1 2 . . . . . . . . . . . . . Crush 9 | . . 3 . . 1 . . . . . . . . . . . . . . . 1 1 1 1 1 . . Escape Stasis 16 | . . . . . . . . . . . . . . 4 . . . 12 . . . . . . . . . Rewire 27 | . . . . . . . . . . . . . . 27 . . . . . . . . . . . . . Trap 1 | . . . . . . . . . . 1 . . . . . . . . . . . . . . . . . Miscellaneous . | . . . . . . . . . . . . . . . . . . . . . . . . . . . . Route ------- -11/Scrapyard -10/Materials (discovered 3 exits: *Mat x2 / *Min) -10/Mines (discovered 3 exits: *Mat x2 / [*Sub]) -9/Materials (discovered 2 exits: *Min x2) -9/Mines -8/Materials (discovered 2 exits: *Fac / Sto) -7/Factory -7/Garrison -7/Factory (discovered 2 exits: *Low x2) -7/Lower Caves -7/Lower Caves -7/Data Miner -6/Proximity Caves -6/Factory (discovered 3 exits: *Fac / [*Low] / *Ext) -6/Extension (discovered 2 exits: *Fac / *Cet) -6/Cetus (discovered 3 exits: *Fac x2 / [*Arc]) -6/Archives (discovered 3 exits: *Fac / *Hub x2) -6/Hub_04(d) (discovered 2 exits: *Fac x2) -5/Factory (discovered 6 exits: Fac x4 / *Upp x2) -5/Upper Caves -5/Upper Caves -4/Factory -4/Waste -4/Factory -3/Research (discovered 2 exits: *Res / *Tes) -3/Testing -2/Research -1/Access To Epsilon Eridani History --------- Turn | Location | Event 1 | -11/Scrapyard | Discovered new exit (range 3) 13 | -11/Scrapyard | Entered Materials 200 | -10/Materials | Discovered new exit (range 8) 312 | -10/Materials | Build established: Mutant 352 | -10/Materials | Discovered new exit (range 13) 368 | -10/Materials | Identified exit to Mines 465 | -10/Materials | Entered Mines 480 | -10/Mines | Learned Materials interactive machine intel 525 | -10/Mines | A weapon hastily lodged in a ceiling crevice suddenly fell to the ground 764 | -10/Mines | Discovered new exit (range 4) 791 | -10/Mines | Joined a pair of Derelicts in attacking an 0b10 outpost 843 | -10/Mines | Discovered new exit (range 10) 871 | -10/Mines | Discovered new exit (range 6) 886 | -10/Mines | Assembled infested the area 913 | -10/Mines | Entered Materials 913 | -9/Materials | Accompanied by 1 ally 913 | -9/Materials | Evolved 2 slots: Utility x1, Weapon x1 914 | -9/Materials | Loaded intel: 18 interactive machine locations 943 | -9/Materials | Lost 4 parts (1p1n1u1w) 991 | -9/Materials | Identified exit to Mines 1154 | -9/Materials | Lost 3 parts (2n1w) 1236 | -9/Materials | Core integrity fell below 50% 1265 | -9/Materials | Entered Mines 1299 | -9/Mines | Learned location of 1 exit from Materials 1498 | -9/Mines | Lost 4 parts (2n1u1w) 1644 | -9/Mines | Discovered new exit (range 8) 1658 | -9/Mines | Entered Materials 1658 | -8/Materials | Evolved 2 slots: Utility x2 1659 | -8/Materials | Identified exit to Storage 1804 | -8/Materials | Found Blink Core 2257 | -8/Materials | Build established: Gunner 2754 | -8/Materials | Repaired Enh. Autogun 2782 | -8/Materials | Discovered new exit (range 11) 2804 | -8/Materials | Entered Factory 2804 | -7/Factory | Evolved 2 slots: Propulsion x2 3112 | -7/Factory | Build established: Scavenger-Gunner 3208 | -7/Factory | Garrison activated, responded to threat 3262 | -7/Factory | Identified exit to Garrison 3262 | -7/Factory | Entered Garrison 3314 | -7/Garrison | Triggered checkpoint 3522 | -7/Garrison | Triggered checkpoint 3623 | -7/Garrison | Discovered new exit (range 13) 3638 | -7/Garrison | Entered Factory 4271 | -7/Factory | Build established: Gunner 4696 | -7/Factory | Identified exit to Lower Caves 5095 | -7/Factory | Central database locked down 5148 | -7/Factory | Entered Lower Caves 5504 | -7/Lower Caves | Attracted the attention of an 0b10 checkpoint 5635 | -7/Lower Caves | Discovered new exit (range 13) 5652 | -7/Lower Caves | Entered another Lower Caves area 6124 | -7/Lower Caves | Core integrity fell below 50% 6221 | -7/Lower Caves | Discovered new exit (range 15) 6235 | -7/Lower Caves | Entered Data Miner 6237 | -7/Data Miner | Discovered new exit (range 6) 6257 | -7/Data Miner | Met Data Miner 6289 | -7/Data Miner | Learned location of Section 7 (-2) 6289 | -7/Data Miner | Acquired the access code to Warlord's prototype stash 6304 | -7/Data Miner | Received God Mode back door access code from Data Miner 6347 | -7/Data Miner | Entered Proximity Caves 6391 | -6/Proximity Caves | Identified exit to Factory 6648 | -6/Proximity Caves | Attracted the attention of an 0b10 base 6681 | -6/Proximity Caves | Destroyed 16 combat bots 6687 | -6/Proximity Caves | Learned Factory terminal intel 6687 | -6/Proximity Caves | Learned Research stockpile data 6687 | -6/Proximity Caves | Learned Factory emergency access door positions 6687 | -6/Proximity Caves | Learned Research trap positions 6688 | -6/Proximity Caves | Lost 4 parts (2u2w) 6726 | -6/Proximity Caves | Entered Factory 6726 | -6/Factory | Evolved 2 slots: Power x1, Utility x1 6728 | -6/Factory | Loaded intel: 28 terminal locations 6800 | -6/Factory | Discovered new exit (range 10) 6872 | -6/Factory | Lost 3 parts (3w) 7044 | -6/Factory | Fabricated VSS Leg (x2) 7072 | -6/Factory | Discovered new exit (range 16) 7125 | -6/Factory | Discovered new exit (range 10) 7132 | -6/Factory | Identified exit to Extension 7134 | -6/Factory | Entered Extension 7135 | -6/Extension | Disrupted transfer network 7160 | -6/Extension | Rescued a captive Derelict 7170 | -6/Extension | Rescued a captive Derelict 7200 | -6/Extension | Rescued a captive Derelict 7201 | -6/Extension | Rescued a captive Derelict 7257 | -6/Extension | Rescued a captive Derelict 7282 | -6/Extension | Rescued A7 7321 | -6/Extension | Found Launcher Loader 7355 | -6/Extension | Rescued a captive Derelict 7401 | -6/Extension | Spotted B-75 Beast 7451 | -6/Extension | Spotted B-75 Beast 7458 | -6/Extension | Lost 3 parts (1p2w) 7464 | -6/Extension | Allies destroyed B-75 Beast 7474 | -6/Extension | Destroyed B-75 Beast 7495 | -6/Extension | Lost 3 allies 7504 | -6/Extension | System corruption reached 10% 7585 | -6/Extension | Energy Cycler disabled 7586 | -6/Extension | Rescued a captive Derelict 7587 | -6/Extension | Rescued a captive Derelict 7591 | -6/Extension | Rescued a captive Derelict 7975 | -6/Extension | Build established: Scavenger-Tank 8010 | -6/Extension | Discovered new exit (range 10) 8011 | -6/Extension | Discovered new exit (range 6) 8047 | -6/Extension | Entered Cetus 8047 | -6/Cetus | Accompanied by 8 allies (A7) 8052 | -6/Cetus | Acquired a Cetus Manufacturing Module code from A7 8063 | -6/Cetus | Spotted Cetus Guard 8067 | -6/Cetus | Spotted Cetus Guard 8070 | -6/Cetus | Allies destroyed Cetus Guard 8070 | -6/Cetus | Allies destroyed Cetus Guard 8072 | -6/Cetus | Spotted Cetus Guard 8074 | -6/Cetus | Spotted Cetus Guard 8083 | -6/Cetus | Allies destroyed Cetus Guard 8086 | -6/Cetus | Allies destroyed Cetus Guard 8236 | -6/Cetus | Started Cetus Manufacturing Module 8249 | -6/Cetus | Escorted A7 to Cetus Mainframe 8261 | -6/Cetus | Manufactured an Enhanced Grunt 8286 | -6/Cetus | Manufactured an Enhanced Grunt 8311 | -6/Cetus | Manufactured an Enhanced Grunt 8336 | -6/Cetus | Manufactured an Enhanced Grunt 8361 | -6/Cetus | Manufactured an Enhanced Grunt 8396 | -6/Cetus | Discovered new exit (range 15) 8517 | -6/Cetus | Discovered new exit (range 16) 8549 | -6/Cetus | Spotted Cetus Guard 8549 | -6/Cetus | Spotted Cetus Guard 8551 | -6/Cetus | Spotted Cetus Guard 8552 | -6/Cetus | Spotted Cetus Guard 8557 | -6/Cetus | Allies destroyed Cetus Guard 8560 | -6/Cetus | Allies destroyed Cetus Guard 8562 | -6/Cetus | Allies destroyed Cetus Guard 8567 | -6/Cetus | Allies destroyed Cetus Guard 8574 | -6/Cetus | Discovered new exit (range 16) 8584 | -6/Cetus | Met Revision 17 8588 | -6/Cetus | System corruption reached 30% 8713 | -6/Cetus | Entered Archives 8713 | -6/Archives | Accompanied by 10 allies (A7) 8718 | -6/Archives | Received a hacking code to weaken MAIN.C 8817 | -6/Archives | Discovered new exit (range 16) 8869 | -6/Archives | Discovered new exit (range 16) 8902 | -6/Archives | Discovered new exit (range 16) 9486 | -6/Archives | Entered Hub_04(d) 9486 | -6/Hub_04(d) | Accompanied by 6 allies 9578 | -6/Hub_04(d) | Discovered new exit (range 15) 9600 | -6/Hub_04(d) | Network Hub disabled 9600 | -6/Hub_04(d) | Network Hub disabled 9605 | -6/Hub_04(d) | Spotted Lightning 9607 | -6/Hub_04(d) | Spotted Lightning 9616 | -6/Hub_04(d) | Spotted Lightning 9619 | -6/Hub_04(d) | Released all parts (12) 9623 | -6/Hub_04(d) | Discovered new exit (range 15) 9624 | -6/Hub_04(d) | Entered Factory 9624 | -5/Factory | Evolved 2 slots: Propulsion x1, Utility x1 9625 | -5/Factory | Identified exit to Upper Caves 9654 | -5/Factory | Lost 3 allies 9655 | -5/Factory | Lost 3 parts (1n1u1w) 9668 | -5/Factory | Identified exit to Factory 9855 | -5/Factory | Fabricated Cld. Aerolev Unit (x1) 10025 | -5/Factory | Watched by a mysterious "MATRIX" hacker. 10208 | -5/Factory | Lost 7 parts (1p2n2u2w) 10238 | -5/Factory | Core integrity fell below 50% 10244 | -5/Factory | Noticed a derelict Sapper rigging charges 10273 | -5/Factory | Build established: Hacker-Mutant 10273 | -5/Factory | Entered Upper Caves 10284 | -5/Upper Caves | System corruption reached 10% 10297 | -5/Upper Caves | Lost 6 parts (1p2n1u2w) 10368 | -5/Upper Caves | Core integrity fell below 20% 10394 | -5/Upper Caves | Lost 3 parts (1p1n1u) 10412 | -5/Upper Caves | Attacked by a delusional Derelict stockpiling parts 10485 | -5/Upper Caves | Learned Factory terminal intel 10806 | -5/Upper Caves | Discovered new exit (range 8) 10814 | -5/Upper Caves | Build established: Scavenger-Mutant 10817 | -5/Upper Caves | Entered another Upper Caves area 10821 | -5/Upper Caves | Discovered exit to Factory (range 11) 10843 | -5/Upper Caves | Entered Factory 10843 | -4/Factory | Evolved 2 slots: Propulsion x1, Utility x1 10844 | -4/Factory | Loaded intel: 26 terminal locations 10921 | -4/Factory | Sucked down chute 10921 | -4/Factory | Entered Waste 10925 | -4/Waste | Spotted C-40 Crusher 10935 | -4/Waste | Spotted C-40 Crusher 10936 | -4/Waste | Spotted C-40 Crusher 10947 | -4/Waste | Spotted C-40 Crusher 10949 | -4/Waste | Lost 9 parts (1p5n3u) 10966 | -4/Waste | Warlord forces began an assault 10968 | -4/Waste | Allies destroyed C-40 Crusher 10968 | -4/Waste | Found Prototype Reactor 10968 | -4/Waste | Identified Vortex Chain Reactor 10972 | -4/Waste | Allies destroyed C-40 Crusher 10981 | -4/Waste | Allies destroyed C-40 Crusher 11217 | -4/Waste | Build established: Hacker-Tank 11240 | -4/Waste | Found Damper Plating 11277 | -4/Waste | Found Prototype Device 11277 | -4/Waste | Identified Exp. ECM Suite 11327 | -4/Waste | Discovered new exit (range 12) 11372 | -4/Waste | Entered Factory 11372 | -4/Factory | Accompanied by 19 allies 11534 | -4/Factory | Build established: Scavenger-Tank 11625 | -4/Factory | P-70 Sage assimilated allied 3Y-ME8(s) 11650 | -4/Factory | Lost 9 allies 11861 | -4/Factory | Lost 3 allies 12104 | -4/Factory | Discovered new exit (range 10) 12169 | -4/Factory | Lost 4 allies 12215 | -4/Factory | Entered Research 12215 | -3/Research | Evolved 2 slots: Utility x1, Weapon x1 12216 | -3/Research | Loaded intel: 78 trap records 12415 | -3/Research | Revision forces began assault on 0b10 12471 | -3/Research | Met up with Revision 17++ 12623 | -3/Research | Discovered new exit (range 10) 12641 | -3/Research | Identified exit to Research 12723 | -3/Research | Discovered new exit (range 19) 12915 | -3/Research | Research terminal network offline 12965 | -3/Research | Entered Testing 13119 | -3/Testing | Spotted Alpha 7 13128 | -3/Testing | Found Prototype Protection 13128 | -3/Testing | Identified Centrium Heavy Armor Plating 13148 | -3/Testing | Destroyed Alpha 7 13240 | -3/Testing | Garrison activated, responded to threat 13323 | -3/Testing | Found Prototype Device 13323 | -3/Testing | Identified AEGIS Remote Shield 13403 | -3/Testing | Discovered exit to Research (range 15) 13479 | -3/Testing | Garrison activated, responded to threat 13556 | -3/Testing | Entered Research 13556 | -2/Research | Evolved 2 slots: Power x1, Utility x1 14044 | -2/Research | System corruption reached 10% 14247 | -2/Research | Spotted B-90 Cyclops 14322 | -2/Research | Destroyed B-90 Cyclops 14385 | -2/Research | Lost 3 parts (1n2u) 14597 | -2/Research | Found Prototype Processor 14597 | -2/Research | Identified Exp. Armor Integrity Analyzer 14698 | -2/Research | System corruption reached 30% 14785 | -2/Research | Lost 3 parts (1p2n) 14806 | -2/Research | First assault squad dispatched 14872 | -2/Research | Core integrity fell below 50% 14875 | -2/Research | Lost 15 parts (3p3n4u5w) 15055 | -2/Research | Incoming assault squad redirected 15128 | -2/Research | Spotted B-90 Cyclops 15436 | -2/Research | Build established: Scout 15554 | -2/Research | Discovered new exit (range 8) 15558 | -2/Research | Identified exit to Access 15559 | -2/Research | Entered Access 15559 | -1/Access | Evolved 2 slots: Utility x2 15566 | -1/Access | Energy Cycler disabled 15585 | -1/Access | Lost 3 parts (2n1w) 15643 | -1/Access | Incoming investigation squad redirected 15694 | -1/Access | Found Fusion Bomb Launcher 15757 | -1/Access | Found Fusion Bomb Launcher 15865 | -1/Access | Discovered new exit (range 6) 15866 | -1/Access | Identified exit to Surface 15867 | *** | Escaped! Last Messages --------------- 15796_ Dropped Impulse Thruster Array+. 15797_ Acquired Field Propulsion Array. 15799_ ALERT: Potential suspicious activity detected, Programmers report to Access Zone 2D. 15804_ Connecting with Terminal... >>Alert(Check) Current Alert Level: 2-R Feedback blocked by Adv. System Shield. 15804_ ALERT: Suspicious activity at Terminal A006. Dispatching Investigation squad. 15849_ HV Slug penetrates Wall. 15851_ HV Slug penetrates P-80 Master. 15851_ P-80 Master suffers critical hit (Destroy). 15851_ Destroyed Gamma Rifle. 15851_ HV Slug penetrates Wall. 15860_ Exp. Reaction Control System destroyed. 15864_ Connecting with Terminal... 15865_ The Access Shell folds into the floor. 15865_ EXIT=FOUND 15866_ EXIT=IDENTIFIED: SURFACE Map ----- +----------------------------------------------------+ | ?????????????????????????????????????????????????? | | ?????????????????????????????????????????????????? | | ??????????????????????????#??????????????????????? | | ?????????????????????????????????????????????????? | | ??????????????????????????????????#??????????????? | | ???????????????????? ???????????????????? ???????? | | ???????????????????? ?????? ? ???????? ?? ???????? | | ??????????????#??????????????????#???#???? ??????? | | ?????????????????????????????#???????#???? ??? ??? | | ???????????????????????#????????#?????? ?????????? | | ??????????????????????????? ??? ?? ?????#???? ???? | | ???????????????#????????????? ???? ???????? ?????? | | ????????????????????? ???????? ???# ?????????? | | ???????????????#?????? ??????????????? ? ???????? | | ?????????????????????????????????????? #????????? | | ?????????#????????????????? ??? ??p + #????? ?? | | ???????????????????? ??? ? ?? ? ? p# # ? ???? | | ?????????????????#?? ? ? ? ? ? # ######???? | | ????????????????#??#????#????######### ####?##?## | | ??????????????????#??#??#??########### ######???? | | ???????????????????########### ####### ####?##### | | ?????????? ? ?????"?" ##?#?####? | | ??????????????BB ??"" ##?#?#?# | | ??? ??????????BB???"" ###?#?## ? | | ???????? ??? ? ???"" #?####???? | | ???????? ??????? ?""" "@ ###?#?## | | ???????????? ? ??"" "" ####?### | | ??????????????? """" ####?###?? | | ??????????????BB """" ####?##### | | ??????????? ??BB """" """ """ #??####### | | ?????????????? "?"" """T""" ##?####### | | ???? ??? ?##???############### #######pt########## | | ????????????####?######?###??#######?# #######?## | | ?????????#?#??#??########???######?### ### #?##?# | | ??????????#?##?#####?#?#?##?##???#####p # ? " ? # | | ???????????#?###?########?#??##?###### # ? "?" # | | ?????????################?##########?#p + ?""" # | | ??????????#?##?##?##?##?#?############ # " ? # | | ????????????####?#######?##?### #? ? ? ?# | | ????????????########?########## # # | | ?????????###?#?#?###?########?# ########? # | | ?????????#?#?################## # # ? # | | ????????????# # # # # | | ?????????????? + + ########## | | ??????????### !! # # ## | | ?????????#??# !! # # ## | | ?????????#??#? ! # # ## | | ??#?????????# # # ## | | ???????? ???? # # ## | | ??????????? ###/#########+##### # ## | +----------------------------------------------------+ Best States ------------- Heat Dissipation 156 Coolant Potential 100 Energy Generation 88 Energy Capacity 1290 Matter Stores 600 Matter Capacity 600 Sight Range 20 Robot Scan Range 16 Terrain Scan Range 24 Terrain Scan Density 285 ECM Strength 1 Jamming Range 12 Power Amplification 30 EM Shielding 3 Armor Coverage 2550 Resistance: TH 20 Resistance: EM 90 Core Shielding 30 Propulsion Shielding 66 Weapon Shielding 66 Evasion (%) 78 Targeting Accuracy 18 Launcher Accuracy 20 Target Analysis 6 Core Analysis 6 Armor Integrity Analysis 50 Recoil Reduction 6 Particle Charging 25 Offensive Hacking 24 Defensive Hacking 34 Authchip Count 1 Trap Extractor Capacity 6 Item Schematics ----------------- VSS Leg | -7/Factory | Scanalyzed Imp. EM Pulse Cannon | -7/Factory | Extracted Combat Drone Bay | -7/Data Miner | Free Lgt. Regenerative Plating | -7/Data Miner | Free Cld. Aerolev Unit | -7/Data Miner | Free Exp. Weapon Shielding | -7/Data Miner | Free Prc. Rocket Launcher | -7/Data Miner | Free Antigrav System | -7/Data Miner | Free Point Defense System | -7/Data Miner | Free Enh. Gauss Cannon | -7/Data Miner | Free Adv. System Shield | -7/Data Miner | Free Lrn. Tractor Beam | -6/Extension | Hacked Wave Gun | -6/Extension | Hacked Cmb. Airjet | -6/Extension | Hacked Imp. Matter Compressor | -5/Factory | Scanalyzed Imp. Gravmag System | -5/Factory | Extracted Imp. Coolant Injector | -5/Factory | Extracted Hvy. Missile Launcher | -5/Factory | Extracted Biometal Heavy Treads | -4/Factory | Hacked Robot Schematics ------------------ A-15 Conveyor | -7/Data Miner | Free M-22 Extractor | -7/Data Miner | Free S-27 Virus | -7/Data Miner | Free Fabricated ------------ VSS Leg | x2 | -6/Factory Cld. Aerolev Unit | x1 | -5/Factory Repaired ---------- Enh. Autogun | 35% | -8/Materials Studied --------- Wheel | -9/Materials | Hacked Hvy. Assault Rifle | -9/Materials | Hacked Grenade Launcher | -9/Materials | Hacked Beam Rifle | -9/Materials | Hacked VSS Leg | -7/Factory | Hacked Imp. Carbon-fiber Leg | -7/Factory | Hacked Imp. Deuterium Engine | -7/Factory | Hacked Proton Missile Launcher | -7/Factory | Hacked Field Propulsion Drive | -5/Factory | Hacked Coil Gun | -5/Factory | Hacked Linear Gravjet | -5/Factory | Hacked Disruptor Cannon | -5/Factory | Hacked Rnf. Deuterium Engine | -5/Factory | Hacked Q-thruster | -1/Access | Hacked Impulse Thruster | -1/Access | Hacked Impulse Thruster Array | -1/Access | Hacked Alien Tech Used ----------------- None Achievements -------------- Tank Life Challenges ------------ None Game ------ Seed ConstructMyomerPod Manual? 0 Play Time 02:16:33 Cumulative 1248.4 hours Start 2026.02.01 @ 11:35:03 End 2026.02.08 @ 20:50:16 Sessions 11 Manual Loads 0 Difficulty Rogue Special Mode None Game No. 1534 Rogue 1250 Adventurer 124 Explorer 160 Win Type 0 Total 60 Types 46/0/8/4/1/0/0/1/0/0 Lore% 93 Gallery% 83 Achievement% 67 Wizard Run 0 Options --------- Layout 0 ASCII 0 Keyboard 1 Movement Numpad Keybinds 0 Fullscreen 2 Font 18/X11 Map View 76x50 Zoom Use 0% Tactical HUD 1 Map Filters NONE Filters NONE Steam 1 RUN: 7f1f54e6-6c0c-4801-ba3c-3fff00d4e366